bitfinex-derivatives/quotes_BTCF0:USTF0_20250508
["timestamp","ask_amount","ask_price","bid_price","bid_amount"]
[1746666094100,0.25363547,98351.0,98350.0,0.2033248]
[1746666094307,1.75363547,98351.0,98350.0,0.2033248]
[1746666094814,0.2033331,98346.0,98345.0,0.168]
[1746666095311,0.0015,98370.0,98345.0,0.5288]
[1746666095501,0.0508305,98352.0,98347.0,0.2033303]
[1746666095706,0.2033248,98350.0,98349.0,0.3608]
[1746666096005,0.2033248,98350.0,98349.0,0.4309]
[1746666096206,0.2033248,98350.0,98349.0,0.5989]
[1746666096407,0.2033248,98350.0,98349.0,0.8007269]
[1746666096597,0.2033248,98350.0,98349.0,0.5974]
[1746666096801,0.0623,98374.0,98354.0,0.2541411]
[1746666096802,0.3049791,98355.0,98354.0,0.2541411]
[1746666097202,1.8049791,98355.0,98354.0,0.4221411]
[1746666097905,2.00665111,98355.0,98354.0,0.168]
[1746666098209,0.2541993,98336.0,98335.0,0.2033555]
[1746666098706,0.04931417,98336.0,98331.0,0.0798]
[1746666098907,0.203362,98332.0,98331.0,0.0798]
[1746666099107,0.2033848,98321.0,98320.0,0.3608]
[1746666099509,1.8050928,98321.0,98320.0,0.3608]
[1746666100007,0.203391,98318.0,98317.0,0.00152567]
[1746666100206,0.2034572,98286.0,98282.0,0.20499151]
[1746666100410,0.3034572,98286.0,98282.0,0.00152621]
[1746666100605,0.4052012,98286.0,98282.0,0.00152621]
[1746666100906,0.3608,98308.0,98282.0,0.00152621]
[1746666101107,0.3608,98325.0,98307.0,0.3608]
[1746666101404,0.0523391,98335.0,98292.0,0.3608]
[1746666101405,0.2034427,98293.0,98292.0,0.3608]
[1746666101708,0.3608,98344.0,98292.0,0.74572]
[1746666101909,0.0518333,98346.0,98334.0,0.3608]
[1746666102106,0.2048558,98335.0,98334.0,0.3608]
[1746666102303,0.3065478,98335.0,98334.0,0.5288]
[1746666102605,0.0015,98335.0,98334.0,0.7321579]
[1746666103011,0.2048558,98335.0,98334.0,0.7321579]
[1746666103313,1.7048558,98335.0,98334.0,0.7321579]
[1746666103507,1.5015,98335.0,98334.0,0.7321579]
[1746666103809,2.0565478,98335.0,98334.0,0.03561817]
[1746666104005,2.2065478,98335.0,98334.0,0.03561817]
[1746666104212,2.5673478,98335.0,98334.0,0.03561817]
[1746666104900,0.203391,98318.0,98303.0,0.3608]
[1746666105104,0.303391,98318.0,98317.0,0.16952567]
[1746666105306,0.455103,98318.0,98317.0,0.16952567]
[1746666105506,1.955103,98318.0,98317.0,0.16952567]
[1746666105702,1.955103,98318.0,98284.0,0.3608]
[1746666105703,0.2034386,98295.0,98284.0,0.3608]
[1746666105909,0.2034572,98286.0,98276.0,0.3608]
[1746666106106,0.4608,98295.0,98276.0,0.3608]
[1746666106107,1.5822,98318.0,98285.0,0.16901744]
[1746666106312,0.2542959,98299.0,98298.0,0.2034256]
[1746666106606,0.1,98299.0,98285.0,0.16901744]
[1746666106807,0.3034572,98286.0,98285.0,0.16901744]
[1746666107204,0.4052012,98286.0,98285.0,0.16901744]
[1746666107409,1.9052012,98286.0,98285.0,0.16901744]
[1746666107617,2.2660012,98286.0,98285.0,0.16901744]
[1746666107809,2.3160012,98286.0,98285.0,0.16901744]
[1746666108613,1.9052012,98286.0,98285.0,0.16901744]
[1746666109013,1.9852012,98286.0,98285.0,0.16901744]
[1746666111115,1.9852012,98286.0,98285.0,0.52981744]
[1746666111313,1.5,98286.0,98285.0,0.73327674]
[1746666111814,1.7034572,98286.0,98285.0,0.52981744]
[1746666112009,0.2034634,98283.0,98282.0,0.00152621]
[1746666112317,0.2034634,98283.0,98282.0,0.20499171]
[1746666112318,0.4214634,98283.0,98282.0,0.20499171]
[1746666112510,0.3714634,98283.0,98282.0,0.00152621]
[1746666112705,1.8714634,98283.0,98282.0,0.00152621]
[1746666113110,1.9052114,98283.0,98282.0,0.16952621]
[1746666115212,1.9052114,98283.0,98282.0,0.06323991]
[1746666115412,2.2052114,98283.0,98282.0,0.00716411]
[1746666115606,2.1727714,98283.0,98282.0,1e-08]
[1746666116318,2.7835714,98283.0,98282.0,1e-08]
[1746666116519,0.2035193,98256.0,98255.0,0.00101775]
[1746666116705,0.6643193,98256.0,98255.0,0.00101775]
[1746666116906,0.4052953,98256.0,98255.0,0.00101775]
[1746666117110,2.2660953,98256.0,98255.0,0.16901775]
[1746666117314,2.4342953,98256.0,98255.0,0.16901775]
[1746666117818,2.4342953,98256.0,98255.0,5e-08]
[1746666117819,2.4918248,98256.0,98255.0,5e-08]
[1746666118019,2.4842953,98256.0,98255.0,5e-08]
[1746666118719,2.4642953,98256.0,98255.0,5e-08]
[1746666119321,1.7852953,98256.0,98255.0,5e-08]
[1746666119617,1.8852953,98256.0,98255.0,5e-08]
[1746666120022,2.2460953,98256.0,98255.0,5e-08]
[1746666120314,0.1355765,98263.0,98255.0,5e-08]
[1746666120315,0.00149999,98265.0,98264.0,0.2035028]
[1746666120515,0.3618,98286.0,98270.0,0.2034868]
[1746666120516,0.2543682,98271.0,98270.0,0.2034868]
[1746666120717,0.1,98265.0,98263.0,0.168]
[1746666120912,0.20197659,98264.0,98263.0,0.168]
[1746666121122,0.3608,98270.0,98263.0,0.336]
[1746666121326,0.3608,98270.0,98264.0,0.2034983]
[1746666121327,0.2035028,98265.0,98264.0,0.2034983]
[1746666121617,0.2035028,98265.0,98264.0,0.1678]
[1746666121822,0.0508706,98274.0,98264.0,0.1678]
[1746666121823,0.2543672,98271.0,98270.0,0.2034846]
[1746666122020,0.3608,98309.0,98285.0,0.2034593]
[1746666122221,0.3608,98309.0,98299.0,0.2034303]
[1746666122516,0.3618,98316.0,98298.0,0.3608]
[1746666122721,0.1015,98300.0,98264.0,0.5288]
[1746666122917,0.1,98276.0,98264.0,0.168]
[1746666123130,0.2050007,98265.0,98264.0,0.168]
[1746666123419,0.3608,98277.0,98264.0,0.168]
[1746666123420,1.8608,98303.0,98264.0,0.7788]
[1746666123618,0.3608,98284.0,98265.0,0.13]
[1746666123920,0.2034769,98278.0,98277.0,0.2034734]
[1746666124122,0.0508658,98284.0,98266.0,0.3608]
[1746666124423,0.2035101,98261.0,98260.0,0.203511]
[1746666124610,1.5,98278.0,98256.0,0.3608]
[1746666124816,0.2035172,98257.0,98256.0,0.5643193]
[1746666125219,0.2035172,98257.0,98256.0,0.5288]
[1746666125423,0.20199099,98257.0,98256.0,0.5288]
[1746666125613,0.76456699,98257.0,98256.0,0.1124406]
[1746666125816,2.26456699,98257.0,98256.0,0.1109406]
[1746666126021,2.31456699,98257.0,98256.0,0.0685314]
[1746666126320,1.5,98257.0,98256.0,0.2720507]
[1746666126621,0.3608,98289.0,98256.0,0.2720507]
[1746666126622,0.2543885,98265.0,98264.0,0.2035007]
[1746666126922,0.2035172,98257.0,98256.0,0.0685314]
[1746666127121,0.3035172,98257.0,98256.0,0.0685314]
[1746666127321,1.5,98260.0,98256.0,0.0685314]
[1746666127521,0.2034929,98271.0,98270.0,0.2034903]
[1746666127728,0.2534929,98271.0,98270.0,0.2019903]
[1746666128020,0.2534929,98271.0,98269.0,0.0508727]
[1746666128021,0.203511,98260.0,98259.0,0.3608]
[1746666128227,0.2035172,98257.0,98256.0,0.2035193]
[1746666128526,0.2035193,98256.0,98253.0,0.0508813]
[1746666128716,0.2035193,98256.0,98242.0,0.0508869]
[1746666129019,0.2035193,98256.0,98247.0,0.05241096]
[1746666129212,0.2035193,98256.0,98255.0,0.16901775]
[1746666129213,0.5643193,98256.0,98255.0,0.16901775]
[1746666129925,0.20199309,98256.0,98255.0,0.16901775]
[1746666130421,0.203513,98260.0,98255.0,0.21989785]
[1746666130628,0.2035193,98258.0,98257.0,0.2035172]
[1746666131219,0.2035125,98261.0,98260.0,0.2543822]
[1746666131413,0.2035125,98261.0,98260.0,0.203505]
[1746666131620,0.0015,98300.0,98260.0,0.351772]
[1746666131814,0.0508667,98282.0,98271.0,0.3608]
[1746666132015,0.0508703,98275.0,98271.0,0.3608]
[1746666132321,0.2034862,98272.0,98271.0,0.7307883]
[1746666133424,0.2034337,98298.0,98297.0,0.2034303]
[1746666133729,0.0015,98300.0,98299.0,0.2034303]
[1746666134024,0.3608,98322.0,98315.0,0.2033972]
[1746666134618,0.0508472,98320.0,98315.0,0.2033972]
[1746666134818,0.3608,98322.0,98321.0,0.2033848]
[1746666135031,0.2033601,98333.0,98332.0,0.2541981]
[1746666135325,0.0015,98335.0,98321.0,0.5288]
[1746666135526,0.0015,98335.0,98323.0,0.0864]
[1746666135829,0.2048558,98335.0,98334.0,0.2033579]
[1746666136023,0.2033579,98334.0,98333.0,0.1671]
[1746666136231,0.2033579,98334.0,98333.0,0.0837]
[1746666136430,0.2927579,98334.0,98333.0,0.0837]
[1746666136727,1.6527579,98334.0,98333.0,0.0837]
[1746666137116,1.6527579,98334.0,98333.0,0.2517]
[1746666137320,1.5633579,98334.0,98333.0,0.2517]
[1746666139727,2.21025391,98334.0,98333.0,0.1276233]
[1746666139926,1.9241579,98334.0,98333.0,0.1276233]
[1746666140230,2.12585391,98334.0,98333.0,0.1276233]
[1746666140528,2.29595391,98334.0,98333.0,0.1276233]
[1746666143227,2.65675391,98334.0,98333.0,0.1276233]
[1746666143922,2.29595391,98334.0,98333.0,0.1276233]
[1746666144321,2.65675391,98334.0,98333.0,0.1276233]
[1746666146525,2.48665391,98334.0,98333.0,0.1276233]
[1746666146733,2.48665391,98334.0,98333.0,0.3309833]
[1746666146734,1.5633579,98334.0,98333.0,0.3309833]
[1746666146937,1.5633579,98334.0,98333.0,0.1276233]
[1746666148020,1.6633579,98334.0,98333.0,0.1276233]
[1746666148632,1.5633579,98334.0,98333.0,0.1276233]
[1746666149727,1.36,98334.0,98333.0,0.3309833]
[1746666149924,0.0508298,98353.0,98345.0,0.2033351]
[1746666150121,0.2043331,98346.0,98345.0,0.3713351]
[1746666150326,0.001,98346.0,98345.0,0.5446351]
[1746666150526,0.2043331,98346.0,98345.0,0.5446351]
[1746666150722,0.001,98346.0,98345.0,0.5446351]
[1746666150927,0.2043331,98346.0,98345.0,0.5446351]
[1746666151425,0.001,98346.0,98345.0,0.5446351]
[1746666151826,0.2033331,98346.0,98345.0,0.6463003]
[1746666152229,0.1016518,98361.0,98360.0,0.2032916]
[1746666152426,0.1016518,98361.0,98359.0,0.3608]
[1746666152733,0.1016518,98361.0,98359.0,0.5641062]
[1746666152734,0.2033041,98360.0,98359.0,0.5641062]
[1746666153129,0.2033041,98360.0,98359.0,0.5288]
[1746666153329,0.2032992,98363.0,98362.0,0.2032979]
[1746666153524,0.3393136,98368.0,98367.0,0.2032897]
[1746666153731,0.2541136,98368.0,98367.0,0.2032897]
[1746666153929,1.6141136,98368.0,98367.0,0.2032897]
[1746666154131,1.6141136,98368.0,98367.0,0.3697897]
[1746666154332,1.6141136,98368.0,98367.0,0.168]
[1746666154531,1.6141136,98368.0,98367.0,0.3712897]
[1746666154726,1.6141136,98368.0,98367.0,0.168]
[1746666155836,1.6141136,98368.0,98367.0,0.2576]
[1746666156138,1.9749136,98368.0,98367.0,0.2576]
[1746666156433,2.1765736,98368.0,98367.0,0.2576]
[1746666156624,1.9749136,98368.0,98367.0,0.2576]
[1746666157339,1.9749136,98368.0,98367.0,0.4608897]
[1746666157340,1.6141136,98368.0,98367.0,0.4608897]
[1746666157529,1.6141136,98368.0,98367.0,0.2576]
[1746666157729,1.7141136,98368.0,98367.0,0.2576]
[1746666159241,1.8157736,98368.0,98367.0,1e-07]
[1746666159440,1.8657736,98368.0,98367.0,1e-07]
[1746666159740,2.4765736,98368.0,98367.0,1e-07]
[1746666160237,0.203391,98318.0,98313.0,0.3608]
[1746666160536,0.1,98318.0,98313.0,0.3608]
[1746666160739,0.5641951,98316.0,98315.0,3e-08]
[1746666160938,1.9241951,98316.0,98315.0,3e-08]
[1746666161238,2.1259951,98316.0,98315.0,3e-08]
[1746666162039,2.0259951,98316.0,98315.0,3e-08]
[1746666162239,2.1259951,98316.0,98315.0,0.16800003]
[1746666162841,2.1259951,98316.0,98315.0,0.16650003]
[1746666163042,1.36,98316.0,98315.0,0.36989723]
[1746666163335,1.5633951,98316.0,98315.0,0.16650003]
[1746666163539,1.6633951,98316.0,98315.0,0.16650003]
[1746666163735,1.6633951,98316.0,98315.0,0.36989723]
[1746666163736,1.36,98316.0,98315.0,0.36989723]
[1746666163936,1.5633951,98316.0,98315.0,0.36989723]
[1746666164433,1.36,98316.0,98315.0,0.36989723]
[1746666164636,1.5633951,98316.0,98315.0,0.47119723]
[1746666164838,1.36,98316.0,98315.0,0.47119723]
[1746666165035,1.5633951,98316.0,98315.0,0.16650003]
[1746666165237,0.2033951,98316.0,98315.0,0.16650003]
[1746666165438,0.3033951,98316.0,98315.0,0.16650003]
[1746666165942,0.2033932,98317.0,98316.0,0.2033951]
[1746666166145,1.66328835,98317.0,98316.0,0.3625]
[1746666167235,1.76228835,98317.0,98316.0,0.3625]
[1746666167434,1.76228835,98317.0,98316.0,0.361]
[1746666167747,1.76228835,98317.0,98316.0,0.2612]
[1746666167941,1.85688835,98317.0,98316.0,0.168]
[1746666168248,1.56328835,98317.0,98316.0,0.168]
[1746666168430,1.66328835,98317.0,98316.0,0.3713951]
[1746666169446,1.36,98317.0,98316.0,0.3713951]
[1746666169743,0.0508467,98320.0,98319.0,0.254229]
[1746666170141,0.2542335,98320.0,98319.0,0.168]
[1746666170345,0.7150335,98320.0,98319.0,0.168]
[1746666170642,2.0650335,98320.0,98319.0,0.168]
[1746666171143,1.5533868,98320.0,98319.0,0.3713889]
[1746666171541,1.6533868,98320.0,98319.0,0.3713889]
[1746666171736,1.6533868,98320.0,98319.0,0.168]
[1746666171942,1.6533868,98320.0,98319.0,0.3713889]
[1746666172136,1.6533868,98320.0,98319.0,0.168]
[1746666172445,1.5533868,98320.0,98319.0,0.168]
[1746666172644,1.6533868,98320.0,98319.0,0.168]
[1746666172845,1.7555868,98320.0,98319.0,0.168]
[1746666173837,1.8572948,98320.0,98319.0,0.168]
[1746666174443,1.8572948,98320.0,98319.0,0.1665]
[1746666174632,1.7550948,98320.0,98319.0,0.1665]
[1746666174837,1.6533868,98320.0,98319.0,0.1665]
[1746666175940,1.6469868,98320.0,98319.0,0.1665]
[1746666176140,1.7469868,98320.0,98319.0,0.1665]
[1746666176348,1.8486948,98320.0,98319.0,0.1665]
[1746666178143,1.8986948,98320.0,98319.0,0.1665]
[1746666178647,1.7033868,98320.0,98319.0,0.1665]
[1746666178854,1.8051868,98320.0,98319.0,0.1665]
[1746666179040,1.7551868,98320.0,98319.0,0.1665]
[1746666179345,1.8568948,98320.0,98319.0,0.1665]
[1746666179542,1.9068948,98320.0,98319.0,0.1665]
[1746666183940,1.6533868,98320.0,98319.0,0.1665]
[1746666184541,1.7548868,98320.0,98319.0,0.1665]
[1746666184740,1.8565948,98320.0,98319.0,0.1665]
[1746666185046,1.7548868,98320.0,98319.0,0.1665]
[1746666185247,1.35,98320.0,98319.0,0.1665]
[1746666185440,1.5533868,98320.0,98319.0,0.3698889]
[1746666185943,1.5533868,98320.0,98319.0,0.5577889]
[1746666187147,0.3608,98330.0,98319.0,0.5577889]
[1746666187148,0.2033532,98337.0,98322.0,0.0508453]
[1746666187454,0.0508354,98342.0,98334.0,0.2033579]
[1746666187652,1.5548558,98335.0,98334.0,0.2033579]
[1746666187851,1.3515,98335.0,98334.0,0.4306579]
[1746666188350,0.09300998,98359.0,98356.0,0.0508277]
[1746666188652,0.2033083,98358.0,98357.0,0.2273]
[1746666188849,0.2033186,98353.0,98352.0,0.00152513]
[1746666189151,0.3033186,98353.0,98352.0,0.16952513]
[1746666189352,0.2033186,98353.0,98352.0,0.16952513]
[1746666189653,1.5533186,98353.0,98352.0,0.16952513]
[1746666191047,1.6533186,98353.0,98352.0,0.16952513]
[1746666191550,1.7760186,98353.0,98352.0,0.16952513]
[1746666192546,1.6760186,98353.0,98352.0,0.16952513]
[1746666192761,1.7760186,98353.0,98352.0,0.16952513]
[1746666193053,1.7760186,98353.0,98352.0,0.29752513]
[1746666193263,1.6760186,98353.0,98352.0,0.50084583]
[1746666193452,1.7760186,98353.0,98352.0,0.50084583]
[1746666193854,1.7760186,98353.0,98352.0,0.29752513]
[1746666194250,1.7760186,98353.0,98352.0,0.16952513]
[1746666194455,1.87769461,98353.0,98352.0,0.16802513]
[1746666194656,0.2033786,98324.0,98323.0,0.1287]
[1746666194955,0.0508383,98337.0,98325.0,0.3050576]
[1746666194956,0.3608,98329.0,98325.0,0.3050576]
[1746666195159,0.2542183,98326.0,98325.0,0.4222135]
[1746666195465,1.35,98326.0,98325.0,0.5509135]
[1746666196457,1.35,98326.0,98325.0,0.8009135]
[1746666196859,1.35,98326.0,98325.0,0.5509135]
[1746666197258,0.0508268,98359.0,98325.0,1.00920399]
[1746666197556,0.2033496,98338.0,98337.0,0.2541839]
[1746666197754,1.5533496,98338.0,98337.0,0.2541839]
[1746666197952,0.2033558,98335.0,98334.0,0.2509]
[1746666198256,1.35,98338.0,98334.0,0.8305394]
[1746666198458,1.35,98338.0,98337.0,0.2033517]
[1746666198756,0.2541584,98354.0,98353.0,0.2033062]
[1746666199161,0.203331,98347.0,98346.0,0.5641297]
[1746666199365,0.203331,98347.0,98346.0,0.6886297]
[1746666199865,1.55180587,98347.0,98346.0,0.1245]
[1746666200061,1.55180587,98347.0,98346.0,0.2925]
[1746666200868,1.55180587,98347.0,98346.0,0.4958331]
[1746666201667,1.65180587,98347.0,98346.0,0.2925]
[1746666201874,1.78280587,98347.0,98346.0,0.291]
[1746666204366,1.78128074,98347.0,98346.0,0.291]
[1746666204558,1.78128074,98347.0,98346.0,0.168]
[1746666206669,1.78128074,98347.0,98346.0,0.1665]
[1746666206865,1.55028074,98347.0,98346.0,0.1665]
[1746666207161,0.0508321,98349.0,98346.0,0.3698331]
[1746666207367,0.2033289,98348.0,98347.0,0.3355289]
[1746666207868,0.3608,98353.0,98348.0,0.0508318]
[1746666208171,0.2033289,98349.0,98348.0,0.168]
[1746666208769,0.73180377,98349.0,98348.0,0.3713289]
[1746666209068,0.5641081,98362.0,98355.0,0.0508281]
[1746666209262,0.6149341,98362.0,98361.0,0.2033021]
[1746666209564,0.2033103,98357.0,98356.0,0.3338124]
[1746666209764,0.2033103,98357.0,98356.0,0.1305]
[1746666209963,0.2033103,98357.0,98356.0,0.3338124]
[1746666210164,0.2033103,98357.0,98356.0,0.5018124]
[1746666210661,0.7333103,98357.0,98356.0,0.5018124]
[1746666211171,0.7333103,98357.0,98356.0,0.5003124]
[1746666211462,0.7333103,98357.0,98356.0,0.297]
[1746666211667,0.9664103,98357.0,98356.0,0.297]
[1746666211961,0.9664103,98357.0,98356.0,0.5003124]
[1746666211962,0.8664103,98357.0,98356.0,0.5003124]
[1746666212367,0.9664103,98357.0,98356.0,0.297]
[1746666213069,0.7333103,98357.0,98356.0,0.5003124]
[1746666214167,0.68232059,98357.0,98356.0,0.5003124]
[1746666215170,0.68232059,98357.0,98356.0,0.297]
[1746666215463,1.00523057,98357.0,98356.0,0.297]
[1746666215856,0.90523057,98357.0,98356.0,0.5003124]
[1746666216166,0.62300998,98357.0,98356.0,0.5003124]
[1746666216565,0.62300998,98357.0,98356.0,0.6293124]
[1746666217268,0.77533057,98357.0,98356.0,0.6293124]
[1746666219164,0.87533057,98357.0,98356.0,0.297]
[1746666219365,0.78232059,98357.0,98356.0,0.297]
[1746666219566,0.94312059,98357.0,98356.0,0.297]
[1746666219768,0.94312059,98357.0,98356.0,0.5003124]
[1746666220072,0.47901029,98357.0,98356.0,0.5003124]
[1746666220368,0.63133088,98357.0,98356.0,0.5003124]
[1746666221566,0.42802058,98357.0,98356.0,0.5003124]
[1746666222764,0.40802058,98357.0,98356.0,0.5003124]
[1746666222966,0.61133088,98357.0,98356.0,0.5003124]
[1746666223278,0.56034117,98357.0,98356.0,0.5003124]
[1746666225170,0.35703087,98357.0,98356.0,0.5003124]
[1746666225371,0.56034117,98357.0,98356.0,0.5003124]
[1746666225765,0.35703087,98357.0,98356.0,0.5003124]
[1746666226168,0.56034117,98357.0,98356.0,0.5003124]
[1746666226368,0.50935146,98357.0,98356.0,0.5003124]
[1746666226565,0.30604116,98357.0,98356.0,0.5003124]
[1746666226768,0.50935146,98357.0,98356.0,0.5003124]
[1746666227474,0.30604116,98357.0,98356.0,0.5003124]
[1746666227974,0.50935146,98357.0,98356.0,0.5003124]
[1746666229072,0.30604116,98357.0,98356.0,0.5003124]
[1746666229265,0.50935146,98357.0,98356.0,0.5003124]
[1746666229468,0.45836175,98357.0,98356.0,0.5003124]
[1746666232377,0.40737204,98357.0,98356.0,0.5003124]
[1746666233271,0.40737204,98357.0,98356.0,0.297]
[1746666233580,0.40737204,98357.0,98356.0,0.5003124]
[1746666235076,0.2032959,98364.0,98363.0,0.2032959]
[1746666235471,0.36230619,98364.0,98363.0,0.3350959]
[1746666235673,0.49410619,98364.0,98363.0,0.3350959]
[1746666236271,0.49410619,98364.0,98363.0,0.5030959]
[1746666237483,0.59410619,98364.0,98363.0,0.5030959]
[1746666237783,0.21,98364.0,98363.0,0.6047599]
[1746666238288,0.21,98364.0,98363.0,0.60165958]
[1746666238475,0.15901029,98364.0,98363.0,0.60165958]
[1746666238876,0.105,98400.0,98363.0,0.66084]
[1746666239082,0.105,98400.0,98399.0,0.2032235]
[1746666239781,0.11131862,98430.0,98429.0,0.2031616]
[1746666239976,0.3608,98448.0,98427.0,0.050791]
[1746666240177,0.3608,98465.0,98439.0,0.3608]
[1746666240377,0.2031046,98457.0,98456.0,0.2031018]
[1746666240581,0.1,98457.0,98456.0,0.2031018]
[1746666240776,0.1284,98474.0,98462.0,0.050773]
[1746666240981,0.101,98466.0,98465.0,0.2030873]
[1746666241176,0.2040853,98466.0,98465.0,0.168]
[1746666241477,0.8945869,98466.0,98465.0,0.168]
[1746666241678,0.8945869,98466.0,98463.0,0.3608]
[1746666241679,0.3031018,98458.0,98457.0,0.0015235]
[1746666241875,1.0257018,98458.0,98457.0,0.0015235]
[1746666242280,1.0257018,98458.0,98457.0,0.1695235]
[1746666242476,0.812368,98458.0,98422.0,0.00152404]
[1746666242676,0.563974,98423.0,98422.0,0.00152404]
[1746666242876,0.66295811,98423.0,98422.0,0.00152404]
[1746666243080,0.66295811,98423.0,98405.0,0.3618162]
[1746666243081,0.2032091,98406.0,98405.0,0.0010162]
[1746666243277,1.3858091,98406.0,98405.0,0.0010162]
[1746666243474,1.4874291,98406.0,98405.0,0.0010162]
[1746666243683,0.2032463,98388.0,98370.0,0.05055074]
[1746666243881,1.0248463,98388.0,98370.0,0.05055074]
[1746666244084,0.1,98388.0,98387.0,0.16952458]
[1746666244277,0.3032463,98388.0,98387.0,0.16952458]
[1746666244483,0.1,98388.0,98387.0,0.37277288]
[1746666244785,0.11590998,98410.0,98387.0,0.37277288]
[1746666244786,0.2540322,98400.0,98391.0,0.0508098]
[1746666245080,0.1,98397.0,98391.0,0.168]
[1746666245291,0.3608,98403.0,98391.0,0.168]
[1746666245292,0.303238,98392.0,98391.0,0.168]
[1746666245685,0.404874,98392.0,98391.0,0.1070861]
[1746666245879,0.404874,98392.0,98348.0,0.3608]
[1746666245880,0.2032711,98376.0,98375.0,9e-08]
[1746666246079,0.2032711,98376.0,98345.0,5e-08]
[1746666246080,0.2033331,98346.0,98345.0,5e-08]
[1746666246289,0.2033827,98322.0,98321.0,0.3608]
[1746666246583,0.1,98322.0,98321.0,0.5641848]
[1746666246781,0.2033646,98331.0,98321.0,0.71250799]
[1746666246982,0.3608,98367.0,98330.0,0.3608]
[1746666247289,0.1,98358.0,98352.0,0.3608]
[1746666247585,0.0508251,98362.0,98352.0,0.3608]
[1746666247778,0.2033008,98362.0,98352.0,0.53455737]
[1746666247980,0.2033009,98362.0,98361.0,0.2033009]
[1746666248180,0.0508221,98368.0,98365.0,0.2032927]
[1746666248380,0.2032897,98367.0,98366.0,0.1382]
[1746666248585,0.00763072,98368.0,98367.0,0.2032897]
[1746666248783,0.2032863,98369.0,98368.0,0.2032876]
[1746666248988,0.2032863,98369.0,98368.0,0.3608]
[1746666249189,0.0015,98370.0,98369.0,0.2032855]
[1746666249686,0.2032855,98369.0,98368.0,0.168]
[1746666250384,0.3416855,98369.0,98368.0,0.168]
[1746666250689,0.30179967,98350.0,98349.0,0.3608]
[1746666250888,0.2033372,98344.0,98343.0,0.04320201]
[1746666251094,0.2033372,98344.0,98310.0,0.3608]
[1746666251095,0.0508459,98322.0,98310.0,0.3608]
[1746666251385,0.203391,98318.0,98310.0,0.3608]
[1746666251583,0.203391,98318.0,98317.0,7e-08]
[1746666251778,0.050857,98300.0,98284.0,0.3608]
[1746666251985,0.6642572,98286.0,98282.0,0.00152621]
[1746666252385,0.8160012,98286.0,98282.0,0.00152621]
[1746666252582,0.2034634,98283.0,98282.0,1e-08]
[1746666252787,0.5642634,98283.0,98282.0,1e-08]
[1746666253088,0.9160114,98283.0,98282.0,1e-08]
[1746666253279,0.3035193,98256.0,98255.0,0.00101775]
[1746666253481,0.6643193,98256.0,98255.0,0.20453915]
[1746666253683,0.3035193,98256.0,98255.0,0.00101775]
[1746666254082,0.3035193,98256.0,98255.0,0.20453915]
[1746666254282,0.3112313,98256.0,98255.0,0.00101775]
[1746666254683,0.4130073,98256.0,98255.0,0.00101775]
[1746666254986,0.2035359,98248.0,98210.0,0.17375737]
[1746666255195,0.2035815,98226.0,98210.0,0.1334]
[1746666255383,1.0251815,98226.0,98205.0,0.3608]
[1746666255582,1.0251815,98226.0,98210.0,0.17375737]
[1746666255784,0.6643815,98226.0,98225.0,0.20460157]
[1746666255982,0.7964815,98226.0,98225.0,7e-08]
[1746666256189,0.2036333,98201.0,98200.0,0.1]
[1746666256384,1.0752333,98201.0,98200.0,0.1]
[1746666256692,1.1770653,98201.0,98200.0,0.0314011]
[1746666256996,0.2036437,98196.0,98177.0,0.00152784]
[1746666257289,0.4554797,98196.0,98195.0,8e-08]
[1746666257789,0.5721997,98196.0,98195.0,8e-08]
[1746666258490,0.5721997,98196.0,98177.0,0.00152784]
[1746666258491,0.0509182,98182.0,98135.0,0.001019]
[1746666258693,0.2037536,98143.0,98135.0,0.001019]
[1746666258892,1.0253536,98143.0,98135.0,0.001019]
[1746666259493,1.12724561,98143.0,98135.0,0.001019]
[1746666259788,1.18491101,98143.0,98135.0,0.001019]
[1746666260189,1.18491101,98143.0,98105.0,0.00101931]
[1746666260190,0.2038263,98108.0,98105.0,0.00101931]
[1746666260394,0.6646263,98108.0,98105.0,0.00101931]
[1746666260593,0.4608,98108.0,98105.0,0.00101931]
[1746666260786,0.4608,98108.0,98107.0,0.20535734]
[1746666260988,0.3608,98108.0,98107.0,0.20535734]
[1746666261280,0.3608,98129.0,98107.0,0.35345693]
[1746666261594,0.3608,98151.0,98142.0,0.2037557]
[1746666261788,0.36861253,98151.0,98150.0,0.2037391]
[1746666262090,0.1,98161.0,98150.0,0.6108]
[1746666262290,0.1,98161.0,98158.0,0.3608]
[1746666262485,0.23060853,98190.0,98165.0,0.203708]
[1746666262486,0.3608,98180.0,98165.0,0.203708]
[1746666262682,0.00775515,98181.0,98165.0,0.25]
[1746666262887,0.0509309,98158.0,98131.0,0.4776]
[1746666263088,0.1,98165.0,98137.0,0.129]
[1746666263289,0.3618,98166.0,98165.0,0.203708]
[1746666263489,0.4618,98166.0,98162.0,0.2037133]
[1746666263684,0.2037287,98157.0,98156.0,0.2037217]
[1746666264082,0.3608,98164.0,98156.0,0.35188]
[1746666264286,0.3608,98164.0,98108.0,0.1345]
[1746666264287,0.3608,98157.0,98108.0,0.1345]
[1746666264488,0.0509494,98122.0,98119.0,0.2038033]
[1746666264685,0.2038243,98109.0,98108.0,0.1345]
[1746666264884,0.2038243,98109.0,98096.0,0.142229]
[1746666264885,0.0509551,98111.0,98105.0,5e-08]
[1746666265084,0.2038409,98101.0,98100.0,0.02564465]
[1746666265395,0.2038334,98105.0,98104.0,0.2038284]
[1746666265691,0.050954,98113.0,98104.0,0.2038284]
[1746666265692,0.3038218,98113.0,98112.0,0.2038118]
[1746666265898,0.2038388,98102.0,98101.0,0.1317]
[1746666266100,0.2038388,98102.0,98101.0,0.2662]
[1746666266400,0.2674554,98102.0,98101.0,0.1317]
[1746666266601,0.3608,98108.0,98107.0,0.2038284]
[1746666266907,0.3608,98108.0,98104.0,0.2547908]
[1746666266908,0.2038367,98105.0,98104.0,0.2547908]
[1746666267093,0.0509486,98124.0,98116.0,0.2038097]
[1746666267404,0.2547843,98110.0,98109.0,0.2038202]
[1746666267596,0.2038162,98113.0,98112.0,0.2038159]
[1746666267793,0.0015,98125.0,98116.0,0.0509524]
[1746666268096,0.0015,98125.0,98124.0,0.5645931]
[1746666268312,0.2037931,98124.0,98123.0,0.1419]
[1746666268491,0.0015,98125.0,98124.0,0.2037931]
[1746666269188,0.205291,98125.0,98124.0,0.2037931]
[1746666269388,0.2037931,98124.0,98123.0,0.1419]
[1746666269594,0.0015,98125.0,98124.0,0.2037931]
[1746666269791,0.0015,98125.0,98124.0,0.3057051]